Cogmind - Beta 10.2 @@@ ROGUE MODE // 2020.11.29 @ 06:56:02 // Halloween2020/ForbiddenLore Player: Leviel Result: Destroyed by as-02090 with Assembled Blade Performance ------------- Evolutions (0) 0 Regions Visited (2) 400 Robots Destroyed (20) 100 Value Destroyed (630) 630 Prototype IDs (0) 0 Alien Tech Used (0) 0 Bonus (0) 0 TOTAL SCORE: 1130 Bonus ------- None Cogmind --------- Core Integrity 0/250 Matter 260/300 Energy 250/250 System Corruption 0% Temperature Cool (0) Movement Walking (150) Ox1 Location -10/Mines Parts ------- > --- POWER (1) -------- Ion Engine > --- PROPULSION (2) --- Aluminum Leg > --- UTILITY (2) ------ Heat Sink Heat Sink > --- WEAPON (2) ------- Small Laser Beam Cannon > --- INVENTORY (4) ---- Ion Engine Compact Matter Pod (150) Structural Scanner Improved Terrain Scanner Peak State ------------ > --- POWER ------------ Light Ion Engine > --- PROPULSION ------- Aluminum Leg Aluminum Leg > --- UTILITY ---------- Improved Heat Sink Targeting Computer > --- WEAPON ----------- Small Laser Small Laser > --- INVENTORY -------- Small Storage Unit [Rating: 9] Favorites ----------- Power Light Ion Engine Engine Light Ion Engine Propulsion Aluminum Leg Leg Aluminum Leg Utility Targeting Computer Device Heat Sink Storage Small Storage Unit Processor Targeting Computer Weapon Small Laser Energy Gun Small Laser Energy Cannon Beam Cannon Ballistic Gun Light Assault Rifle Launcher Grenade Launcher Build | -11 -10 -10 ------- Run | Scr Mat Min Slots Evolved . | . . . Power . | . . . Propulsion . | . . . Utility . | . . . Weapon . | . . . Parts Attached 32 | 6 10 16 Power 5 | 1 . 4 Engine 5 | 1 . 4 Core . | . . . Reactor . | . . . Propulsion 8 | 2 3 3 Treads . | . . . Leg 8 | 2 3 3 Wheel . | . . . Hover . | . . . Flight . | . . . Utility 5 | 1 1 3 Device 3 | . . 3 Storage 1 | 1 . . Processor 1 | . 1 . Hackware . | . . . Protection . | . . . Artifact . | . . . Weapon 14 | 2 6 6 Energy Gun 11 | 2 4 5 Energy Cannon 1 | . . 1 Ballistic Gun 1 | . 1 . Ballistic Cannon . | . . . Launcher 1 | . 1 . Special Weapon . | . . . Impact Weapon . | . . . Slashing Weapon . | . . . Piercing Weapon . | . . . Special Melee Weapon . | . . . Unidentified Prototypes . | . . . Parts Lost 16 | . 5 11 Power 2 | . . 2 Propulsion 2 | . . 2 Utility 2 | . . 2 Weapon 10 | . 5 5 Highest Loss Streak 4 | . 2 4 Average Slot Usage (%) 91 | . 92 91 Engine 11 | . 14 9 Leg 27 | . 28 27 Device 9 | . . 13 Storage 4 | . 14 . Processor 12 | . 11 13 Energy Gun 18 | . 21 17 Energy Cannon 5 | . . 7 Naked Turns . | . . . Heaviest Build 14 | 12 14 11 Greatest Support 20 | 20 20 20 Greatest Overweight (x) 1 | . . 1 Average Overweight (x) . | . . . Largest Inventory Capacity 6 | 6 6 6 Average Capacity 4 | 5 6 4 Most Carried 5 | 2 5 4 Average Carried 2 | 1 3 2 Final Capacity 6 | 6 6 4 Final Carried 4 | 2 2 4 Class Distribution -------------------- 62% | Scavenger-Mutant 37% | Mutant Dominant Class ---------------- Mutant | -10/Materials Scavenger-Mutant | -10/Mines Resources | -11 -10 -10 ----------- Run | Scr Mat Min Matter Collected 471 | 236 136 99 Remotely . | . . . Salvage Created 686 | . 271 415 Parts 38 | . 18 20 Haulers Intercepted . | . . . Recyclers Shooed 1 | . 1 . Parts Field Recycled . | . . . Retrieved Matter . | . . . Parts Self-Destructed . | . . . Prevented . | . . . Kills | -11 -10 -10 ------- Run | Scr Mat Min Combat Hostiles Destroyed 18 | . 9 9 Guns 13 | . 8 5 Cannons 4 | . . 4 AOE 1 | . 1 . Classes Destroyed 4 | . 2 2 Worker 1 | . . 1 Tunneler 1 | . . 1 Swarmer 3 | . 3 . Grunt 15 | . 6 9 Best Kill Streak 3 | . 3 2 Combat Bots Only 3 | . 3 2 Max Kills in Single Turn 1 | . 1 1 Gunslinging . | . . . Exploded 1 | . 1 . Melee . | . . . Uniques/NPCs Destroyed . | . . . Combat | -11 -10 -10 -------- Run | Scr Mat Min Damage Taken 1376 | . 545 831 Core 268 | . 68 200 Absorbed by Shields . | . . . Core Remaining (%) 100 | 100 . . Volleys Fired 98 | . 31 67 Largest 2 | . 2 2 Hottest 125 | . 90 125 Shots Fired 151 | . 43 108 Gun 112 | . 40 72 Cannon 36 | . . 36 Launcher 3 | . 3 . Special . | . . . Kinetic 7 | . 3 4 Thermal 141 | . 37 104 Explosive 3 | . 3 . Electromagnetic . | . . . Robot Hit Streak 13 | . 11 13 Robot Miss Streak 2 | . 2 2 Penetration Max . | . . . Secondary Targets 3 | . 2 1 Max Gunslinging Chain 1 | . 1 1 Shots Hit Robots 74 | . 32 42 Core Hits 37 | . 18 19 Critical Hits 1 | . . 1 Critical Kills . | . . . Critical Parts Destroyed 1 | . . 1 Melee Attacks . | . . . Impact . | . . . Slashing . | . . . Piercing . | . . . Sneak Attacks . | . . . Combat Hostiles . | . . . Follow-up Attacks . | . . . Damage Inflicted 1070 | . 501 569 Guns 759 | . 365 394 Cannons 175 | . . 175 Explosions 136 | . 136 . Melee . | . . . Ramming . | . . . Kinetic 48 | . 22 26 Thermal 886 | . 343 543 Explosive 136 | . 136 . Electromagnetic . | . . . Impact . | . . . Slashing . | . . . Piercing . | . . . Highest Corruption . | . . . Average Corruption . | . . . Corruption Purged . | . . . Overload Shots . | . . . Overflow Damage 11 | . 11 . Projectiles . | . . . Explosions 11 | . 11 . Melee . | . . . Knockbacks . | . . . Impact . | . . . Kinetic . | . . . Secondary . | . . . Self-Inflicted Damage 90 | . 90 . Shots 3 | . 3 . Rammed . | . . . Targets Rammed . | . . . Kicked . | . . . Crushed . | . . . Highest Temperature 363 | . 238 363 Average Temperature 110 | . 91 120 Received Heat Transfer 573 | . 147 426 Effects 3 | . 1 2 Shutdowns 1 | . . 1 Energy Bleed 2 | . 1 1 Siege Activations . | . . . Robots Corrupted . | . . . Combat Hostiles . | . . . Parts Fried . | . . . Impact Corruptions . | . . . Robots Melted . | . . . Combat Hostiles . | . . . Parts Melted 5 | . 2 3 Heat Transferred 2192 | . 976 1216 Parts Sabotaged . | . . . Parts Stolen . | . . . Parts Stripped . | . . . Power Chain Reactions . | . . . Missiles Intercepted . | . . . Alert | -11 -10 -10 ------- Run | Scr Mat Min Peak Influence 200 | . 200 188 Initial 78 | . . 78 Average 74 | . 88 76 Maximum Alert Level 1 | . 1 . Low Security (%) 97 | 100 90 100 Level 1 2 | . 9 . Level 2 . | . . . Level 3 . | . . . Level 4 . | . . . Level 5 . | . . . High Security . | . . . Max Security . | . . . Squads Dispatched 3 | . 3 . Investigation 1 | . 1 . Extermination . | . . . Reinforcement 2 | . 2 . Assault . | . . . Garrison . | . . . Intercept . | . . . Construction Impeded . | . . . Haulers Reinforced . | . . . Stealth | -11 -10 -10 --------- Run | Scr Mat Min Distress Signals . | . . . Communications Jammed . | . . . Distress Signals . | . . . Times Spotted 23 | . 11 12 Peak Tracking Total 4 | . 4 3 Tactical Retreats 1 | . . 1 Traps | -11 -10 -10 ------- Run | Scr Mat Min Traps Triggered 1 | . 1 . Indirectly . | . . . Trap Hack Attempts . | . . . Triggered . | . . . Disarmed . | . . . Reprogrammed . | . . . Reused . | . . . Traps Extracted . | . . . Installed . | . . . Triggered . | . . . Machines | -11 -10 -10 ---------- Run | Scr Mat Min Machines Disabled 3 | . 1 2 Max in Single Turn 1 | . 1 1 Machines Sabotaged . | . . . Garrisons Compromised . | . . . Overloaded Fab Kills . | . . . Fab Network Shutdowns . | . . . Hacking | -11 -10 -10 --------- Run | Scr Mat Min Machines Accessed . | . . . Terminals . | . . . Fabricators . | . . . Repair Stations . | . . . Recycling Units . | . . . Scanalyzers . | . . . Garrison Access . | . . . Total Hacks . | . . . Successful . | . . . Failed . | . . . Catastrophic . | . . . Database Lockouts . | . . . Manual . | . . . Terminals . | . . . Fabricators . | . . . Repair Stations . | . . . Recycling Units . | . . . Scanalyzers . | . . . Garrison Access . | . . . Terminal Hacks . | . . . Fabricator Hacks . | . . . Repair Station Hacks . | . . . Recycling Unit Hacks . | . . . Scanalyzer . | . . . Garrison Access Hacks . | . . . Unauthorized Hacks . | . . . Terminals . | . . . Fabricators . | . . . Repair Stations . | . . . Recycling Units . | . . . Scanalyzers . | . . . Garrison Access . | . . . Data Cores Recovered . | . . . Used . | . . . Hacking Detections . | . . . Full Trace Events . | . . . Feedback Events . | . . . Feedback Blocked . | . . . Robot Schematics Acquired . | . . . Robots Built . | . . . Matter . | . . . Time . | . . . Total Robot Build Rating . | . . . Part Schematics Acquired . | . . . Parts Built . | . . . Matter . | . . . Time . | . . . Total Part Build Rating . | . . . Parts Repaired . | . . . Time . | . . . Parts Recycled . | . . . Recycled Matter . | . . . Retrieved Matter . | . . . Retrieved Components . | . . . Parts Scanalyzed . | . . . Part Schematics Acquired . | . . . Parts Damaged . | . . . Bothacking | -11 -10 -10 ------------ Run | Scr Mat Min Used RIF Installer . | . . . Robots Hacked . | . . . Non-combat . | . . . Combat . | . . . Robot Hacks Applied . | . . . Relay Couplers Released . | . . . Robots Rewired . | . . . Allies Hacked . | . . . Hacks Repelled . | . . . Allies | -11 -10 -10 -------- Run | Scr Mat Min Total Allies . | . . . Largest Group . | . . . Highest-Rated Group . | . . . Highest-Rated Ally . | . . . Total Orders . | . . . Ally Attacks . | . . . Total Damage . | . . . Kills . | . . . Allies Corrupted . | . . . Allies Melted . | . . . Intel | -11 -10 -10 ------- Run | Scr Mat Min Robot Analysis Total . | . . . Derelict Logs Recovered 1 | . . 1 Drone Launches . | . . . Drone Recoveries . | . . . Exploration | -11 -10 -10 ------------- Run | Scr Mat Min Turns Passed 1070 | 77 276 717 Spaces Moved 569 | 58 148 363 Core 4 | 4 . . Treads . | . . . Legs 565 | 54 148 363 Wheels . | . . . Hover . | . . . Flight . | . . . Fastest Speed 50 | 50 120 120 Average Speed 119 | 115 120 120 Slowest Speed 150 | 120 120 150 Overloaded Moves . | . . . Propulsion Burnouts . | . . . Robots Hopped . | . . . Cave-ins Triggered . | . . . Exploration Rate (%) 38 | 5 34 76 Regions Visited 2 Branch Regions 1 Pre-discovered Areas . | . . . Known Exits Taken . | . . . Unknown Exits Taken 2 | 1 1 . Scrap Searched . | . . . Spaces Dug . | . . . Terrain Destroyed 14 | . 14 . Melee . | . . . Projectile . | . . . AOE 14 | . 14 . Terrain Rammed . | . . . Walls Destroyed . | . . . Machines Disabled . | . . . Actions | -11 -10 -10 --------- Run | Scr Mat Min Total 799 | 65 202 532 Wait 82 | . 6 76 Move 567 | 57 147 363 Hop . | . . . Pick Up 12 | 2 4 6 Fast Attach 14 | 6 3 5 Attach 8 | . 3 5 Detach . | . . . Swap 10 | . 4 6 Drop 8 | . 4 4 Fire 98 | . 31 67 Melee . | . . . Ram . | . . . Kick . | . . . Crush . | . . . Escape Stasis . | . . . Rewire . | . . . Trap . | . . . Miscellaneous . | . . . Route ------- -11/Scrapyard -10/Materials -10/Mines (discovered 1 exit: [*Mat]) History --------- Turn | Location | Event 5 | -11/Scrapyard | Discovered new exit (range 15) 78 | -11/Scrapyard | Entered Materials 303 | -10/Materials | Build established: Mutant 327 | -10/Materials | Discovered new exit (range 12) 354 | -10/Materials | Entered Mines 375 | -10/Mines | Core integrity fell below 50% 690 | -10/Mines | Lost 4 parts (1p1u2w) 892 | -10/Mines | Excavation squad dispatched 892 | -10/Mines | A large section of the Mines collapsed 981 | -10/Mines | Build established: Scavenger-Mutant 1013 | -10/Mines | Core integrity fell below 20% 1070 | -10/Mines | Discovered new exit (range 8) 1071 | -10/Mines | Destroyed by as-02090 with Assembled Blade Last Messages --------------- G-34 Mercenary destroyed. T-07 Excavator is excavating. K-01 Serf collects debris. T-07 Excavator is excavating. Acquired Sml. Laser. K-01 Serf collects debris. T-07 Excavator is excavating. as-02090 sneak attacks. T-07 Excavator destroyed. Dropped Lgt. Ion Engine. K-01 Serf collects debris. T-07 Excavator is excavating. Acquired Heat Sink. Aluminum Leg destroyed. K-01 Serf collects debris. T-07 Excavator is excavating. as-02090 sneak attacks. as-55814 sneak attacks. K-01 Serf destroyed. EXIT=FOUND Map ----- +----------------------------------------------------+ | | | | | | | | | | | ??????????????????????????????????????? | | ??????????????????????????????????????? | | ??????????????????????????????????????? | | ??????????????????????????????????????? | | ??????????????????????????????????????? | | ??????????????????????????????????????? | | ??????????????????????????????????????? | | ??????????????????????????????????????? | | ??????????????????????????????????????? | | ??????????????????????????????????????? | | ????????#????????????????????????###??? | | ???????? #???????????##??????????# ??? | | ????????? #??????????# #????????# ??? | | ?????????? ?????????####"????????# #??? | | ??????????< ???????## ! #######??# #??? | | ??????????? ???????# =%=# ##?# #??? | | ???????????# ??????# " ###?# #??? | | ???????????# ???????# % ### #??? | | ???????????# t??????##= %= #### | | ???????????# ########%; ### # | | ???????????# @aa =% !%#### !!! | | ???????????# ==* ##??# ! | | ???????????## #######;% ##???# ! ! | | ????????????# ??????#######????# !!! | | ????????????# ???????##????????# | | ????????????# ?????????????????# | | ????????????#??????????????????######## | | ???????????????????????????####???????? | | ???????????????????????????# ##??????? | | ???????????????????????????# #??????? | | ???????????????????????????# #??????? | | ??????????????????????????## #??????? | | ????????????????????????### #??????? | | ???????????????????????## #???????? | | ???????????????????????# ##???????? | | ???????????????????????# #????????? | | ???????????????????????## ##???????? | | ????????????????????????# ##??????? | | ????????????????????????# ###????? | | ????????????????????????## ##???? | | ?????????????????????????## ##### | | ??????????????????????????#### | | ?????????????????????????????## #### | | ?????????????????????????????## ##??? | | ????????????????????????????## ##??? | +----------------------------------------------------+ Best States ------------- Heat Dissipation 45 Energy Generation 10 Energy Capacity 250 Matter Stores 300 Matter Capacity 300 Sight Range 16 Terrain Scan Density 10 Evasion (%) 40 Targeting Accuracy 5 Item Schematics ----------------- None Robot Schematics ------------------ None Fabricated ------------ Nothing Alien Tech Used ----------------- None Achievements -------------- None Challenges ------------ None Game ------ Seed GammaWaveCoupler Manual? 0 Play Time 00:11:06 Cumulative 4.1 hours Start 2020.11.29 @ 06:45:42 End 2020.11.29 @ 06:56:02 Sessions 1 Manual Loads 0 Difficulty Rogue Special Mode Halloween2020/ForbiddenLore Game No. 12 Rogue 12 Adventurer 0 Explorer 0 Win Type - Total 0 Types 0/0/0/0/0/0/0/0/0 Lore% 15 Gallery% 12 Achievement% 11 Wizard Run 0 Options --------- ASCII 0 Keyboard 0 Movement Numpad Keybinds 0 Fullscreen 1 Font 18/SmallcapsGlow Map View 76x50 Tactical HUD 0 Map Filters NONE Filters NONE Steam 1 RUN: 1eff18b8-ab3f-44ca-9e95-4642f596b97f